[Event "Rapid Tournament (RAP)"]
[Site "Biel, Switzerland"]
[Date "2026.07.12"]
[Round "1.45"]
[White "Labrovic, Jakov"]
[Black "Gheorghiu, Alexandru"]
[Result "1-0"]
[TimeControl "15 + 5"]
[WhiteTitle "-"]
[BlackTitle "-"]
[WhiteFideId "14549786"]
[BlackFideId "1363573"]
[WhiteElo "2005"]
[BlackElo "1647"]

1. e4 {[%clk 00:15:09]} {[%emt 44:05:27]} c6 {[%clk 00:15:08]} {[%emt
00:00:03]} 2. d4 {[%clk 00:15:09]} {[%emt 00:00:05]} d5 {[%clk 00:15:12]}
{[%emt 00:00:02]} 3. exd5 {[%clk 00:15:10]} {[%emt 00:00:04]} cxd5 {[%clk
00:15:15]} {[%emt 00:00:01]} 4. Nf3 {[%clk 00:15:13]} {[%emt 00:00:01]} Nc6
{[%clk 00:15:19]} {[%emt 00:00:01]} 5. Ne5 {[%clk 00:15:16]} {[%emt 00:00:02]}
Nf6 {[%clk 00:15:14]} {[%emt 00:00:10]} 6. Bb5 {[%clk 00:15:19]} {[%emt
00:00:02]} Bd7 {[%clk 00:15:15]} {[%emt 00:00:03]} 7. Nxd7 {[%clk 00:15:23]}
{[%emt 00:00:02]} Qxd7 {[%clk 00:15:17]} {[%emt 00:00:03]} 8. c3 {[%clk
00:15:21]} {[%emt 00:00:07]} e6 {[%clk 00:15:20]} {[%emt 00:00:03]} 9. O-O
{[%clk 00:15:23]} {[%emt 00:00:02]} Bd6 {[%clk 00:15:23]} {[%emt 00:00:02]} 10.
Nd2 {[%clk 00:15:24]} {[%emt 00:00:05]} O-O {[%clk 00:15:24]} {[%emt 00:00:03]}
11. Nf3 {[%clk 00:15:27]} {[%emt 00:00:01]} Qc7 {[%clk 00:15:27]} {[%emt
00:00:03]} 12. h3 {[%clk 00:15:25]} {[%emt 00:00:07]} Ne7 {[%clk 00:14:45]}
{[%emt 00:00:47]} 13. Bg5 {[%clk 00:15:09]} {[%emt 00:00:21]} Ng6 {[%clk
00:14:46]} {[%emt 00:00:04]} 14. Bxf6 {[%clk 00:14:26]} {[%emt 00:00:47]} gxf6
{[%clk 00:14:49]} {[%emt 00:00:03]} 15. Bd3 {[%clk 00:14:25]} {[%emt 00:00:06]}
f5 {[%clk 00:14:08]} {[%emt 00:00:46]} 16. Re1 {[%clk 00:13:58]} {[%emt
00:00:32]} Rac8 {[%clk 00:12:55]} {[%emt 00:01:19]} 17. Qd2 {[%clk 00:13:00]}
{[%emt 00:01:03]} Bf4 {[%clk 00:12:45]} {[%emt 00:00:13]} 18. Qc2 {[%clk
00:12:56]} {[%emt 00:00:09]} Qd7 {[%clk 00:11:56]} {[%emt 00:00:55]} 19. g3
{[%clk 00:12:36]} Bh6 {[%clk 00:11:56]} {[%emt 00:00:29]} 20. Re2 {[%clk
00:12:19]} b5 {[%clk 00:11:45]} {[%emt 00:00:39]} 21. a3 {[%clk 00:12:21]} a5
{[%clk 00:11:47]} {[%emt 00:00:06]} 22. Qb3 {[%clk 00:12:01]} Rb8 {[%clk
00:11:46]} {[%emt 00:00:30]} 23. Rd1 {[%clk 00:11:46]} Rb7 {[%clk 00:11:12]}
{[%emt 00:01:00]} 24. Ne5 {[%clk 00:11:04]} Nxe5 {[%clk 00:11:13]} {[%emt
00:00:51]} 25. dxe5 {[%clk 00:11:07]} Rfb8 {[%clk 00:11:05]} {[%emt 00:00:14]}
26. f4 {[%clk 00:10:44]} Bf8 {[%clk 00:10:37]} {[%emt 00:01:02]} 27. Qc2 {[%clk
00:10:23]} b4 {[%clk 00:10:19]} {[%emt 00:00:50]} 28. axb4 {[%clk 00:10:22]}
axb4 {[%clk 00:10:20]} {[%emt 00:00:09]} 29. c4 {[%clk 00:10:21]} b3 {[%clk
00:10:03]} {[%emt 00:00:28]} 30. Qb1 {[%clk 00:10:24]} Rd8 {[%clk 00:09:14]}
{[%emt 00:00:56]} 31. Ree1 {[%clk 00:09:10]} Qc6 {[%clk 00:08:44]} {[%emt
00:01:52]} 32. Bf1 {[%clk 00:07:52]} Bc5+ {[%clk 00:08:21]} {[%emt 00:01:52]}
33. Kh2 {[%clk 00:07:50]} d4 {[%clk 00:07:54]} {[%emt 00:00:39]} 34. Bg2 {[%clk
00:07:47]} Qb6 {[%clk 00:07:49]} {[%emt 00:00:20]} 35. Bxb7 {[%clk 00:07:40]}
Qxb7 {[%clk 00:07:53]} {[%emt 00:00:13]} 36. Qd3 {[%clk 00:07:39]} Bb4 {[%clk
00:06:42]} {[%emt 00:01:20]} 37. Rg1 {[%clk 00:07:38]} Qe4 {[%clk 00:06:26]}
{[%emt 00:00:27]} 38. Qxb3 {[%clk 00:05:55]} Be7 {[%clk 00:06:10]} {[%emt
00:02:09]} 39. Rge1 {[%clk 00:05:19]} Qc6 {[%clk 00:06:10]} {[%emt 00:00:47]}
40. Qd3 {[%clk 00:05:19]} Qb6 {[%clk 00:06:08]} {[%emt 00:00:13]} 41. b3 {[%clk
00:05:10]} Bb4 {[%clk 00:06:11]} {[%emt 00:00:15]} 42. Rg1 {[%clk 00:05:09]}
Bc3 {[%clk 00:05:37]} {[%emt 00:00:44]} 43. g4 {[%clk 00:05:08]} {[%emt
00:00:06]} Qxb3 {[%clk 00:04:59]} {[%emt 00:00:45]} 44. gxf5+ {[%clk 00:05:09]}
{[%emt 00:00:03]} Kf8 {[%clk 00:05:02]} {[%emt 00:00:02]} 45. f6 {[%clk
00:04:56]} {[%emt 00:00:17]} Qb2+ {[%clk 00:04:18]} {[%emt 00:00:50]} 46. Rg2
{[%clk 00:04:52]} {[%emt 00:00:09]} Qb6 {[%clk 00:04:12]} {[%emt 00:00:11]} 47.
Qxh7 {[%emt 00:00:38]} 1-0

[Event "Rapid Tournament (RAP)"]
[Site "Biel, Switzerland"]
[Date "2026.07.12"]
[Round "1.46"]
[White "Gutzwiller, Darian"]
[Black "Arntz, Christoph"]
[Result "0-1"]
[TimeControl "15 + 5"]
[WhiteTitle "-"]
[BlackTitle "-"]
[WhiteFideId "579000304"]
[BlackFideId "16257723"]
[WhiteElo "1633"]
[BlackElo "1999"]

1. d4 {[%clk 00:15:09]} {[%emt 00:00:01]} Nf6 {[%clk 00:15:07]} {[%emt
00:00:03]} 2. c4 {[%clk 00:15:13]} {[%emt 00:00:02]} e6 {[%clk 00:14:54]}
{[%emt 00:00:17]} 3. Nf3 {[%clk 00:15:16]} {[%emt 00:00:02]} d5 {[%clk
00:14:47]} {[%emt 00:00:12]} 4. g3 {[%clk 00:15:19]} {[%emt 00:00:03]} c6
{[%clk 00:14:30]} {[%emt 00:00:21]} 5. Bg2 {[%clk 00:15:21]} {[%emt 00:00:02]}
Bb4+ {[%clk 00:14:02]} {[%emt 00:00:33]} 6. Bd2 {[%clk 00:15:05]} {[%emt
00:00:23]} Be7 {[%clk 00:14:01]} {[%emt 00:00:05]} 7. O-O {[%clk 00:15:06]}
{[%emt 00:00:04]} O-O {[%clk 00:13:54]} {[%emt 00:00:12]} 8. Nc3 {[%clk
00:15:09]} {[%emt 00:00:02]} Nbd7 {[%clk 00:13:27]} {[%emt 00:00:32]} 9. a3
{[%clk 00:15:06]} {[%emt 00:00:08]} Ne4 {[%clk 00:13:03]} {[%emt 00:00:29]} 10.
Nxe4 {[%clk 00:14:46]} {[%emt 00:00:25]} dxe4 {[%clk 00:13:05]} {[%emt
00:00:04]} 11. Ne5 {[%clk 00:14:28]} {[%emt 00:00:22]} f5 {[%clk 00:12:31]}
{[%emt 00:00:39]} 12. Bf4 {[%clk 00:13:53]} {[%emt 00:00:40]} Bf6 {[%clk
00:11:51]} {[%emt 00:00:46]} 13. Qd2 {[%clk 00:12:32]} {[%emt 00:01:26]} g5
{[%clk 00:10:29]} {[%emt 00:01:26]} 14. Nxd7 {[%clk 00:12:00]} {[%emt
00:00:38]} Bxd7 {[%clk 00:10:17]} {[%emt 00:00:16]} 15. Be3 {[%clk 00:11:59]}
{[%emt 00:00:07]} Qe7 {[%clk 00:09:29]} {[%emt 00:00:52]} 16. f3 {[%clk
00:11:52]} {[%emt 00:00:13]} exf3 {[%clk 00:09:21]} {[%emt 00:00:13]} 17. Bxf3
{[%clk 00:11:52]} {[%emt 00:00:04]} Rad8 {[%clk 00:09:06]} {[%emt 00:00:20]} 18.
Rad1 {[%clk 00:11:04]} {[%emt 00:00:53]} h6 {[%emt 00:00:35]} 19. Qd3 {[%clk
00:10:26]} {[%emt 00:00:40]} Qg7 {[%clk 00:08:23]} {[%emt 00:00:22]} 20. Bf2
{[%clk 00:09:57]} {[%emt 00:00:33]} Be8 {[%clk 00:08:16]} {[%emt 00:00:12]} 21.
e3 {[%clk 00:10:00]} {[%emt 00:00:02]} Bg6 {[%clk 00:08:11]} {[%emt 00:00:09]}
22. Rfe1 {[%clk 00:08:51]} {[%emt 00:01:14]} e5 {[%clk 00:08:02]} {[%emt
00:00:15]} 23. d5 {[%clk 00:08:46]} {[%emt 00:00:10]} e4 {[%clk 00:07:54]}
{[%emt 00:00:13]} 24. Qe2 {[%clk 00:08:15]} {[%emt 00:00:35]} exf3 {[%clk
00:07:53]} {[%emt 00:00:07]} 25. Qxf3 {[%clk 00:08:18]} {[%emt 00:00:02]} cxd5
{[%clk 00:07:31]} {[%emt 00:00:27]} 26. Rxd5 {[%clk 00:07:44]} {[%emt
00:00:39]} Rxd5 {[%clk 00:07:25]} {[%emt 00:00:10]} 27. Qxd5+ {[%clk 00:07:27]}
{[%emt 00:00:22]} Qf7 {[%clk 00:07:24]} {[%emt 00:00:06]} 28. Qxf7+ {[%clk
00:07:28]} {[%emt 00:00:04]} Kxf7 {[%clk 00:07:21]} {[%emt 00:00:09]} 29. b4
{[%clk 00:07:32]} {[%emt 00:00:02]} a6 {[%clk 00:07:07]} {[%emt 00:00:19]} 30.
Rd1 {[%clk 00:07:31]} {[%emt 00:00:05]} Rd8 {[%clk 00:07:11]} {[%emt 00:00:01]}
31. Rc1 {[%clk 00:07:28]} {[%emt 00:00:08]} Bb2 {[%clk 00:07:08]} {[%emt
00:00:08]} 32. Rb1 {[%clk 00:07:17]} {[%emt 00:00:16]} Bxa3 {[%clk 00:07:07]}
{[%emt 00:00:06]} 33. b5 {[%clk 00:07:14]} {[%emt 00:00:08]} axb5 {[%clk
00:06:59]} {[%emt 00:00:14]} 34. Rxb5 {[%clk 00:07:15]} {[%emt 00:00:03]} Rd7
{[%clk 00:07:00]} {[%emt 00:00:04]} 35. Ra5 {[%clk 00:06:56]} {[%emt 00:00:25]}
Bd6 {[%clk 00:06:49]} {[%emt 00:00:15]} 36. Be1 {[%clk 00:06:19]} {[%emt
00:00:42]} Bc7 {[%clk 00:06:52]} {[%emt 00:00:03]} 37. Rb5 {[%clk 00:06:12]}
{[%emt 00:00:11]} Bd8 {[%clk 00:06:29]} {[%emt 00:00:28]} 38. Bc3 {[%clk
00:05:58]} {[%emt 00:00:20]} Bf6 {[%clk 00:06:11]} {[%emt 00:00:22]} 39. Bb4
{[%clk 00:05:49]} {[%emt 00:00:14]} Rc7 {[%clk 00:05:59]} {[%emt 00:00:17]} 40.
c5 {[%clk 00:05:48]} {[%emt 00:00:06]} Kg7 {[%clk 00:05:46]} {[%emt 00:00:19]}
41. Ra5 {[%clk 00:05:29]} {[%emt 00:00:23]} Be8 {[%clk 00:05:37]} {[%emt
00:00:13]} 42. Ra7 {[%clk 00:05:30]} {[%emt 00:00:06]} Bc6 {[%clk 00:05:40]}
{[%emt 00:00:01]} 43. Kf2 {[%clk 00:05:27]} {[%emt 00:00:07]} Rd7 {[%clk
00:05:44]} {[%emt 00:00:02]} 44. h4 {[%clk 00:05:21]} {[%emt 00:00:11]} gxh4
{[%clk 00:05:47]} {[%emt 00:00:02]} 45. gxh4 {[%clk 00:05:24]} {[%emt
00:00:01]} Bxh4+ {[%clk 00:05:51]} 46. Ke2 {[%clk 00:05:22]} {[%emt 00:00:08]}
Re7 {[%clk 00:05:53]} {[%emt 00:00:03]} 47. Bc3+ {[%clk 00:05:06]} {[%emt
00:00:21]} Bf6 {[%clk 00:05:57]} {[%emt 00:00:02]} 48. Bxf6+ {[%clk 00:05:06]}
{[%emt 00:00:05]} Kxf6 {[%clk 00:06:00]} {[%emt 00:00:01]} 49. Kd3 {[%clk
00:05:09]} {[%emt 00:00:02]} Rd7+ {[%clk 00:05:51]} {[%emt 00:00:15]} 50. Ke2
{[%clk 00:05:04]} {[%emt 00:00:10]} h5 {[%clk 00:05:51]} {[%emt 00:00:04]} 51.
Ra1 {[%clk 00:05:06]} {[%emt 00:00:02]} h4 {[%clk 00:05:52]} {[%emt 00:00:05]}
52. Rh1 {[%clk 00:05:10]} {[%emt 00:00:01]} Bxh1 {[%clk 00:05:55]} {[%emt
00:00:02]} 53. Kf2 {[%clk 00:04:59]} {[%emt 00:00:16]} h3 {[%clk 00:05:57]}
{[%emt 00:00:03]} 54. Kg1 {[%clk 00:05:02]} {[%emt 00:00:02]} Bg2 {[%clk
00:06:01]} 55. Kh2 {[%clk 00:05:05]} {[%emt 00:00:02]} Rc7 {[%clk 00:06:04]}
{[%emt 00:00:02]} 56. Kg3 {[%clk 00:05:02]} {[%emt 00:00:08]} Rxc5 {[%clk
00:06:08]} {[%emt 00:00:01]} 57. Kh2 {[%clk 00:05:05]} {[%emt 00:00:02]} b5
{[%clk 00:06:12]} {[%emt 00:00:02]} 58. Kg3 {[%clk 00:05:09]} Rc3 {[%clk
00:06:16]} 59. Kh2 {[%clk 00:05:12]} {[%emt 00:00:01]} b4 {[%clk 00:06:17]}
{[%emt 00:00:04]} 60. Kg3 {[%clk 00:05:15]} {[%emt 00:00:01]} b3 {[%clk
00:06:21]} {[%emt 00:00:01]} 61. Kh2 {[%clk 00:05:19]} {[%emt 00:00:02]} b2
{[%clk 00:06:25]} 62. e4 {[%clk 00:05:24]} f4 {[%clk 00:06:09]} {[%emt
00:00:22]} 63. e5+ {[%clk 00:05:19]} {[%emt 00:00:09]} Kf5 {[%clk 00:06:12]}
{[%emt 00:00:02]} 64. e6 {[%clk 00:05:21]} {[%emt 00:00:04]} b1=Q {[%clk
00:06:14]} {[%emt 00:00:03]} 65. e7 {[%clk 00:05:24]} {[%emt 00:00:02]} Qh1#
0-1

[Event "Rapid Tournament (RAP)"]
[Site "Biel, Switzerland"]
[Date "2026.07.12"]
[Round "1.47"]
[White "Javet, Blaise"]
[Black "Guidi, Elia"]
[Result "1-0"]
[TimeControl "15 + 5"]
[WhiteTitle "-"]
[BlackTitle "-"]
[WhiteFideId "1305026"]
[BlackFideId "1351931"]
[WhiteElo "1980"]
[BlackElo "1627"]

1. Nf3 {[%clk 00:15:06]} {[%emt 00:00:03]} Nf6 {[%clk 00:15:08]} {[%emt
00:00:03]} 2. g3 {[%clk 00:15:09]} {[%emt 00:00:02]} d5 {[%clk 00:15:10]}
{[%emt 00:00:04]} 3. d4 {[%clk 00:15:12]} {[%emt 00:00:01]} Bg4 {[%clk
00:15:00]} {[%emt 00:00:16]} 4. Bg2 {[%clk 00:15:15]} {[%emt 00:00:02]} e6
{[%clk 00:15:03]} {[%emt 00:00:02]} 5. O-O {[%clk 00:15:10]} {[%emt 00:00:10]}
Be7 {[%clk 00:15:06]} {[%emt 00:00:02]} 6. c4 {[%clk 00:15:12]} {[%emt
00:00:03]} c6 {[%clk 00:15:02]} {[%emt 00:00:10]} 7. Qb3 {[%clk 00:14:51]}
{[%emt 00:00:25]} Qb6 {[%clk 00:14:59]} {[%emt 00:00:09]} 8. c5 {[%clk
00:14:30]} {[%emt 00:00:25]} Qxb3 {[%clk 00:14:31]} {[%emt 00:00:33]} 9. axb3
{[%clk 00:14:33]} {[%emt 00:00:01]} O-O {[%clk 00:14:27]} {[%emt 00:00:09]} 10.
b4 {[%clk 00:14:33]} {[%emt 00:00:05]} Na6 {[%clk 00:13:40]} {[%emt 00:00:53]}
11. Ra4 {[%clk 00:12:21]} {[%emt 00:02:18]} Rfe8 {[%clk 00:12:59]} {[%emt
00:00:45]} 12. Re1 {[%clk 00:12:24]} {[%emt 00:00:02]} Bf8 {[%clk 00:12:31]}
{[%emt 00:00:33]} 13. Nc3 {[%clk 00:11:52]} {[%emt 00:00:36]} Bxf3 {[%clk
00:11:32]} {[%emt 00:01:04]} 14. exf3 {[%clk 00:11:39]} {[%emt 00:00:19]} g6
{[%clk 00:11:12]} {[%emt 00:00:26]} 15. Bf4 {[%clk 00:11:05]} {[%emt 00:00:38]}
Nh5 {[%clk 00:10:18]} {[%emt 00:00:59]} 16. Bd2 {[%clk 00:09:37]} {[%emt
00:01:33]} Nc7 {[%clk 00:10:12]} {[%emt 00:00:11]} 17. g4 {[%clk 00:09:05]}
{[%emt 00:00:36]} Nf6 {[%clk 00:09:48]} {[%emt 00:00:30]} 18. Bf4 {[%clk
00:09:09]} {[%emt 00:00:01]} Re7 {[%clk 00:09:15]} {[%emt 00:00:38]} 19. Bxc7
{[%clk 00:07:51]} {[%emt 00:01:23]} Rxc7 {[%clk 00:09:18]} {[%emt 00:00:01]} 20.
b5 {[%clk 00:07:51]} {[%emt 00:00:06]} Rcc8 {[%clk 00:07:12]} {[%emt 00:02:12]}
21. Rea1 {[%clk 00:07:40]} {[%emt 00:00:16]} cxb5 {[%clk 00:05:37]} {[%emt
00:01:39]} 22. Rxa7 {[%clk 00:06:30]} {[%emt 00:01:16]} Rxa7 {[%clk 00:05:01]}
{[%emt 00:00:40]} 23. Rxa7 {[%clk 00:06:33]} {[%emt 00:00:02]} b4 {[%clk
00:05:04]} {[%emt 00:00:02]} 24. Na4 {[%clk 00:05:27]} {[%emt 00:01:10]} Rc7
{[%clk 00:04:31]} {[%emt 00:00:39]} 25. Bf1 {[%clk 00:04:56]} {[%emt 00:00:36]}
Nd7 {[%clk 00:04:31]} {[%emt 00:00:05]} 26. f4 {[%clk 00:04:41]} {[%emt
00:00:20]} Bg7 {[%clk 00:04:20]} {[%emt 00:00:17]} 27. Bb5 {[%clk 00:03:39]}
{[%emt 00:01:06]} Nb8 {[%clk 00:03:03]} {[%emt 00:01:22]} 28. Ra8 {[%clk
00:03:38]} {[%emt 00:00:06]} Rc8 {[%clk 00:03:03]} {[%emt 00:00:05]} 29. Nb6
{[%clk 00:03:41]} {[%emt 00:00:01]} Rf8 {[%clk 00:02:58]} {[%emt 00:00:10]} 30.
Ra7 {[%clk 00:03:32]} {[%emt 00:00:15]} Bxd4 {[%clk 00:02:59]} {[%emt
00:00:03]} 31. Na4 {[%clk 00:03:28]} {[%emt 00:00:10]} Na6 {[%clk 00:01:53]}
{[%emt 00:01:11]} 32. Bxa6 {[%clk 00:03:09]} {[%emt 00:00:24]} bxa6 {[%clk
00:01:57]} 33. Rxa6 {[%clk 00:03:12]} {[%emt 00:00:02]} Rc8 {[%clk 00:01:57]}
{[%emt 00:00:05]} 34. c6 {[%clk 00:03:13]} {[%emt 00:00:03]} Rc7 {[%clk
00:01:40]} {[%emt 00:00:23]} 35. b3 {[%clk 00:03:15]} {[%emt 00:00:03]} Kf8
{[%clk 00:01:39]} {[%emt 00:00:07]} 36. Kf1 {[%clk 00:01:54]} {[%emt 00:01:25]}
Ke7 {[%clk 00:01:42]} {[%emt 00:00:02]} 37. Ke2 {[%clk 00:01:59]} {[%emt
00:00:01]} Kd6 {[%clk 00:01:37]} {[%emt 00:00:09]} 38. f3 {[%clk 00:02:02]}
{[%emt 00:00:02]} Rxc6 {[%clk 00:01:32]} {[%emt 00:00:10]} 39. Ra8 {[%clk
00:02:04]} {[%emt 00:00:03]} Rc2+ {[%clk 00:01:07]} {[%emt 00:00:30]} 40. Kd3
{[%clk 00:02:09]} Rc3+ {[%clk 00:00:35]} {[%emt 00:00:37]} 41. Nxc3 {[%clk
00:02:11]} {[%emt 00:00:02]} Bxc3 {[%clk 00:00:38]} {[%emt 00:00:02]} 42. Ra7
{[%clk 00:02:09]} {[%emt 00:00:07]} e5 {[%clk 00:00:14]} {[%emt 00:00:29]} 43.
Rxf7 {[%clk 00:01:59]} {[%emt 00:00:15]} exf4 {[%clk 00:00:08]} {[%emt
00:00:11]} 44. Rxh7 {[%clk 00:02:00]} {[%emt 00:00:04]} Ke6 {[%clk 00:00:11]}
{[%emt 00:00:03]} 45. Rc7 {[%clk 00:01:54]} {[%emt 00:00:10]} d4 {[%clk
00:00:08]} {[%emt 00:00:09]} 46. h4 {[%clk 00:01:50]} {[%emt 00:00:09]} Kf6
{[%clk 00:00:11]} {[%emt 00:00:02]} 47. Rc6+ {[%clk 00:01:50]} {[%emt
00:00:04]} Kg7 {[%clk 00:00:14]} {[%emt 00:00:02]} 48. Ke4 {[%clk 00:01:51]}
{[%emt 00:00:03]} Kf7 {[%clk 00:00:09]} {[%emt 00:00:11]} 49. h5 {[%clk
00:01:40]} {[%emt 00:00:16]} gxh5 {[%clk 00:00:12]} {[%emt 00:00:03]} 50. gxh5
{[%clk 00:01:43]} Kg7 {[%clk 00:00:12]} {[%emt 00:00:05]} 51. Rd6 {[%clk
00:01:45]} {[%emt 00:00:03]} Kh7 {[%clk 00:00:14]} {[%emt 00:00:03]} 52. Kxf4
{[%clk 00:01:46]} {[%emt 00:00:04]} Kg7 {[%clk 00:00:16]} {[%emt 00:00:03]} 53.
Kf5 {[%clk 00:01:44]} {[%emt 00:00:07]} Kh7 {[%clk 00:00:15]} {[%emt 00:00:06]}
54. Ke4 {[%clk 00:01:40]} {[%emt 00:00:08]} Kg7 {[%clk 00:00:17]} {[%emt
00:00:04]} 55. Rxd4 {[%clk 00:01:42]} {[%emt 00:00:03]} 1-0

[Event "Rapid Tournament (RAP)"]
[Site "Biel, Switzerland"]
[Date "2026.07.12"]
[Round "1.48"]
[White "Sudarsandhari Shibani, Willson"]
[Black "Liengme, Samuel"]
[Result "0-1"]
[TimeControl "15 + 5"]
[WhiteTitle "-"]
[BlackTitle "-"]
[WhiteFideId "1364553"]
[BlackFideId "1368141"]
[WhiteElo "1620"]
[BlackElo "1967"]

1. e4 {[%emt 44:05:16]} c6 {[%emt 00:00:04]} 2. d4 {[%emt 00:00:03]} d5 {[%emt
00:00:02]} 3. Nc3 {[%emt 00:00:04]} dxe4 {[%emt 00:00:02]} 4. Nxe4 {[%emt
00:00:10]} Nf6 {[%emt 00:00:03]} 5. Nxf6+ {[%emt 00:00:09]} exf6 {[%emt
00:00:03]} 6. Nf3 {[%emt 00:00:04]} Bd6 {[%emt 00:00:08]} 7. Bc4 {[%emt
00:00:09]} O-O {[%emt 00:00:15]} 8. O-O {[%emt 00:00:03]} Bg4 {[%emt 00:00:14]}
9. c3 {[%emt 00:00:08]} Re8 {[%emt 00:00:25]} 10. Be3 {[%emt 00:00:05]} Qc7
{[%emt 00:00:39]} 11. g3 {[%emt 00:01:08]} Nd7 {[%emt 00:01:21]} 12. Be2 {[%emt
00:00:03]} Rad8 {[%emt 00:00:24]} 13. Qd3 {[%emt 00:00:12]} Nf8 {[%emt
00:00:23]} 14. Bd1 {[%emt 00:00:46]} c5 {[%emt 00:00:19]} 15. Bc2 {[%emt
00:00:14]} Bxf3 {[%emt 00:00:13]} 16. Qf5 {[%emt 00:01:40]} Qc6 {[%emt
00:00:26]} 17. Rae1 {[%emt 00:01:18]} Bg2 {[%emt 00:00:40]} 18. Bf4 {[%emt
00:01:00]} Bxf1 {[%emt 00:00:27]} 19. Rxf1 {[%emt 00:00:07]} Bxf4 {[%emt
00:00:11]} 20. Qxf4 {[%emt 00:00:04]} cxd4 {[%emt 00:00:05]} 21. cxd4 {[%emt
00:00:07]} Qxc2 {[%emt 00:00:04]} 22. h4 {[%emt 00:00:21]} Qxb2 {[%emt
00:00:06]} 23. h5 {[%emt 00:00:13]} Rxd4 {[%emt 00:00:07]} 24. Qc7 {[%emt
00:00:10]} Rd7 {[%emt 00:00:29]} 25. Qf4 {[%emt 00:00:12]} Qxa2 {[%emt
00:00:09]} 26. h6 {[%emt 00:00:02]} Ng6 {[%emt 00:00:25]} 27. Qg4 {[%emt
00:00:20]} Qe6 {[%emt 00:00:19]} 28. Qa4 {[%emt 00:00:17]} Rd5 {[%emt
00:00:19]} 29. hxg7 {[%emt 00:00:06]} Rh5 {[%emt 00:00:06]} 30. f4 {[%emt
00:00:49]} Qe2 {[%emt 00:00:09]} 31. Rf2 {[%emt 00:00:11]} Qe1+ {[%emt
00:00:17]} 32. Kg2 {[%emt 00:00:03]} Rh2+ {[%emt 00:00:09]} 33. Kxh2 {[%emt
00:00:09]} Qxf2+ 34. Kh3 {[%emt 00:00:04]} Nxf4+ 35. Kg4 {[%emt 00:00:46]} h5+
36. Kf5 {[%emt 00:01:35]} Re5+ 0-1